{"text_format":"1","workbook":"xlsx","n_sheets":2,"sheets":["INFORME","Farmacia Sede Ebais"],"not_rendered":{"charts":0,"images":1,"macros":1,"external_links":0,"defined_names":4,"comments":2,"pivot_tables":0},"unopened":[],"bounds":{"document_bytes":16777216,"sheet_cells":100000,"rows_first":2000,"rows_last":500,"rows_between":2000,"halvings":0,"cell_chars":16384,"cell_head_chars":4096},"cells_cut":0,"cells_raw":0,"read":"whole","date_system":"1900"}

{"sheet":"INFORME","index":0,"n_rows":49,"n_cols":8,"rows_kept":49,"cut":false,"hidden":false,"merged":[[45,3,45,7],[49,0,49,9],[50,0,50,9],[51,0,51,9],[5,6,5,9],[31,7,31,9],[21,7,21,9],[22,7,22,9],[19,7,19,9],[13,7,13,9],[11,7,11,9],[14,7,14,9],[18,7,18,9],[16,7,16,9],[42,3,42,4],[8,7,9,9],[39,1,39,2],[34,3,34,4],[6,6,6,9],[7,6,7,9],[12,7,12,9],[10,7,10,9],[15,7,15,9],[5,1,5,4],[8,0,8,1],[52,0,52,9],[8,4,8,6],[6,1,6,4],[30,7,30,9],[28,7,28,9],[29,7,29,9],[26,7,26,9],[23,7,23,9],[20,7,20,9],[25,7,25,9],[24,7,24,9],[7,1,7,4],[17,7,17,9],[27,7,27,9],[0,0,0,8],[4,1,4,4],[3,0,3,1],[3,2,3,4],[2,0,2,8],[3,6,3,9],[4,6,4,9],[1,0,1,8]]}
["DIRECCION DE REGULACIÓN DE PRODUCTOS DE INTERÉS SANITARIO"]
["Control de Drogas Psicotrópicas"]
["Informe Mensual de movimientos de Farmacia para la Caja Costarricense del Seguro Social"]
["Información correspondiente al mes:",null,null,null,null,"Año:"]
["Nombre de la Farmacia",null,null,null,null,"Código del Establecimiento:"]
["Dirección Exacta:",null,null,null,null,"Provincia:"]
["Teléfono:",null,null,null,null," Correo electrónico:"]
["Regente Farmacéutico:",null,null,null,null,"Código de Colegiado:"]
[" DROGA PSICOTRÓPICA",null,"1. INVENTARIO INICIAL","2. ENTRADAS","3. SALIDAS",null,null,"4. INVENTARIO FINAL (Saldo actual final del mes)"]
["Código","Droga","Inventario Físico (Saldo final del mes anterior)","Entradas","Unidades Despachadas","Recetas Despachadas","Otros egresos"]
["SI-091","Alprazolam 0.25 mg ",null,null,null,null,null,{"$f":"C11+D11-(E11+G11)","v":0}]
["SI-001","Alprazolam 0.5 mg ",null,null,null,null,null,{"$f":"C12+D12-(E12+G12)","v":0}]
["SI-002","Alprazolam 1mg ",null,null,null,null,null,0]
["SI-092","Alprazolam 2mg ",null,null,null,null,null,0]
["SI-012","Bromazepam 3mg",null,null,null,null,null,0]
["SI-013","Bromazepam 6mg ",null,null,null,null,null,0]
["110310485/ SI-014","Clobazam 10 mg ",null,null,null,null,null,0]
["110280340 /SI-016","Clonazepam 2 mg",null,null,null,null,null,0]
["110286460 / SI-111","Clonazepam gotas 2.5 mg/mL",null,null,null,null,null,0]
["110310480 / SI-020","Diazepam 5 mg",null,null,null,null,null,0]
["110313630 / SI-096","Diazepam 5mg /mL",null,null,null,null,null,0]
["110280720 / SI-037","Fenobarbital 25 mg",null,null,null,null,null,0]
["110280730 / SI-038","Fenobarbital 100 mg",null,null,null,null,null,0]
["110283830 / SI-101","Fenobarbital 50mg/mL",null,null,null,null,null,0]
["110184165 / SI-156","Ketamina Solución Inyectable 10 mg/mL",null,null,null,null,null,0]
["SI-054","Lorazepam 1mg ",null,null,null,null,null,0]
["110311100 / SI-055","Lorazepam 2mg ",null,null,null,null,null,0]
["SI-138","Melex 1 mg",null,null,null,null,null,0]
["110314315 / SI-125","Midalozolam 5 mg / mL",null,null,null,null,null,0]
["110311150 / SI-163","Midazolam Tabletas 15 mg",null,null,null,null,null,0]
["111300008 / SI-062","Rivotril Clonazepam Gotas 2,5 mg/mL",null,null,null,null,null,0]
["SI-145","Zopiclona 7.5 mg",null,null,null,null,null,0]
[]
[]
[null,null,null,"Total de Recetas Despachadas",null,{"$f":"SUM(F11:F32)","v":0}]
[]
[]
[]
[]
[]
[]
[]
[null,null,null,"Total de Recetas Despachadas",null,{"$f":"SUM(F11:F32)","v":0}]
[]
[]
[null,"FECHA",null,"FIRMA DEL REGENTE RESPONSABLE"]
[]
[]
["OBSERVACIONES:"]

{"sheet":"Farmacia Sede Ebais","index":1,"n_rows":49,"n_cols":8,"rows_kept":49,"cut":false,"hidden":false,"merged":[[52,0,52,9],[28,7,28,9],[29,7,29,9],[30,7,30,9],[31,7,31,9],[34,3,34,4],[39,1,39,2],[42,3,42,4],[45,3,45,7],[49,0,49,9],[50,0,50,9],[51,0,51,9],[27,7,27,9],[16,7,16,9],[17,7,17,9],[18,7,18,9],[19,7,19,9],[20,7,20,9],[21,7,21,9],[22,7,22,9],[23,7,23,9],[24,7,24,9],[25,7,25,9],[26,7,26,9],[15,7,15,9],[7,1,7,4],[7,6,7,9],[8,0,8,1],[8,4,8,6],[8,7,9,9],[10,7,10,9],[11,7,11,9],[12,7,12,9],[13,7,13,9],[14,7,14,9],[4,1,4,4],[4,6,4,9],[5,1,5,4],[5,6,5,9],[6,1,6,4],[6,6,6,9],[0,0,0,8],[1,0,1,8],[2,0,2,8],[3,0,3,1],[3,2,3,4],[3,6,3,9]]}
["DIRECCION DE REGULACIÓN DE PRODUCTOS DE INTERÉS SANITARIO"]
["Control de Drogas Psicotrópicas"]
["Informe Mensual de movimientos de Farmacia Sede Ebais para la Caja Costarricense del Seguro Social"]
["Información correspondiente al mes:",null,null,null,null,"Año:"]
["Nombre de la Farmacia Sede Ebais (si aplica):",null,null,null,null,"Código del Establecimiento:"]
["Dirección Exacta:",null,null,null,null,"Provincia:"]
["Teléfono:",null,null,null,null," Correo electrónico:"]
["Regente Farmacéutico:",null,null,null,null,"Código de Colegiado:"]
[" DROGA PSICOTRÓPICA",null,"1. INVENTARIO INICIAL","2. ENTRADAS","3. SALIDAS",null,null,"4. INVENTARIO FINAL (Saldo actual final del mes)"]
["Código","Droga","Inventario Físico (Saldo final del mes anterior)","Entradas","Unidades Despachadas","Recetas Despachadas","Otros egresos"]
["SI-091","Alprazolam 0.25 mg ",null,null,null,null,null,{"$f":"C11+D11-(E11+G11)","v":0}]
["SI-001","Alprazolam 0.5 mg ",null,null,null,null,null,{"$f":"C12+D12-(E12+G12)","v":0}]
["SI-002","Alprazolam 1mg ",null,null,null,null,null,0]
["SI-092","Alprazolam 2mg ",null,null,null,null,null,0]
["SI-012","Bromazepam 3mg",null,null,null,null,null,0]
["SI-013","Bromazepam 6mg ",null,null,null,null,null,0]
["110310485/ SI-014","Clobazam 10 mg ",null,null,null,null,null,0]
["110280340 /SI-016","Clonazepam 2 mg",null,null,null,null,null,0]
["110286460 / SI-111","Clonazepam gotas 2.5 mg/mL",null,null,null,null,null,0]
["110310480 / SI-020","Diazepam 5 mg",null,null,null,null,null,0]
["110313630 / SI-096","Diazepam 5mg /mL",null,null,null,null,null,0]
["110280720 / SI-037","Fenobarbital 25 mg",null,null,null,null,null,0]
["110280730 / SI-038","Fenobarbital 100 mg",null,null,null,null,null,0]
["110283830 / SI-101","Fenobarbital 50mg/mL",null,null,null,null,null,0]
["110184165 / SI-156","Ketamina Solución Inyectable 10 mg/mL",null,null,null,null,null,0]
["SI-054","Lorazepam 1mg ",null,null,null,null,null,0]
["110311100 / SI-055","Lorazepam 2mg ",null,null,null,null,null,0]
["SI-138","Melex 1 mg",null,null,null,null,null,0]
["110314315 / SI-125","Midalozolam 5 mg / mL",null,null,null,null,null,0]
["110311150 / SI-163","Midazolam Tabletas 15 mg",null,null,null,null,null,0]
["111300008 / SI-062","Rivotril Clonazepam Gotas 2,5 mg/mL",null,null,null,null,null,0]
["SI-145","Zopiclona 7.5 mg",null,null,null,null,null,0]
[]
[]
[null,null,null,"Total de Recetas Despachadas",null,{"$f":"SUM(F11:F32)","v":0}]
[]
[]
[]
[]
[]
[]
[]
[null,null,null,"Total de Recetas Despachadas",null,{"$f":"SUM(F11:F32)","v":0}]
[]
[]
[null,"FECHA",null,"FIRMA DEL REGENTE RESPONSABLE"]
[]
[]
["OBSERVACIONES:"]